[Event "ONJK-C 2019"]
[Site "Borne"]
[Date "2019.08.09"]
[Round "7.10"]
[White "Molanus, Florian"]
[Black "De Rooij, Kevin"]
[Result "0-1"]
[ECO "D36"]
[WhiteElo "1287"]
[BlackElo "1465"]
[Annotator "NA RC"]
[PlyCount "75"]
[EventDate "2019.08.05"]
[EventType "swiss"]
[EventCountry "NED"]
[SourceTitle "playchess.com"]
[Source "ChessBase"]
[SourceQuality "1"]
[TimeControl "5400+30"]

1. d4 {[%emt 0:00:00]} d5 {[%emt 0:00:00]} 2. c4 {[%emt 0:00:00]} e6 {[%emt 0:00:00]} 3. Nc3 {[%emt 0:00:00]} Be7 {[%emt 0:00:00]} 4. Nf3 {[%emt 0:00:13]} Nf6 {[%emt 0:00:44]} 5. Bg5 {[%emt 0:00:17]} Nbd7 {[%emt 0:01:03]} 6. cxd5 {[%emt 0:01:09]} exd5 {[%emt 0:00:31]} 7. e3 {[%emt 0:02:36]} c6 {[%emt 0:01:46]} 8. Bd3 {[%emt 0:04:18]} O-O {[%emt 0:02:48]} 9. O-O {[%emt 0:02:00]} Re8 {[%emt 0:02:29]} 10. Qc2 {[%emt 0:02:29]} Nf8 {[%emt 0:03:11]} 11. Ne5 {[%emt 0:04:31]} Ng6 {[%emt 0:05:11]} 12. Nxg6 {[%emt 0:03:03]} hxg6 {[%emt 0:02:23]} 13. f3 {[%emt 0:04:39]} Nh5 {[%emt 0:04:04]} 14. Bxe7 {[%emt 0:03:24]} Rxe7 {[%emt 0:01:15]} 15. Rfe1 {[%emt 0:03:42]} Nf6 {[%emt 0:01:34]} 16. Qf2 {[%emt 0:08:25]} Qb6 {[%emt 0:04:07]} 17. Rad1 {[%emt 0:10:52]} Bf5 {[%emt 0:02:25]} 18. e4 {[%emt 0:03:42]} dxe4 {[%emt 0:02:47]} 19. fxe4 {[%emt 0:01:01]} Bg4 {[%emt 0:00:24]} 20. Rd2 {[%emt 0:00:54]} Rd8 {[%emt 0:01:11]} 21. Bc4 {[%emt 0:02:51]} Be6 {[%emt 0:03:50]} 22. Bxe6 {[%emt 0:06:45]} Rxe6 {[%emt 0:01:51]} 23. Kh1 {[%emt 0:04:03]} a6 {[%emt 0:05:10]} 24. Na4 {[%emt 0:15:24]} Nxe4 {[%emt 0:05:04]} 25. Rxe4 {[%emt 0:01:06]} Qa5 {[%emt 0:02:45]} 26. Rxe6 {[%emt 0:00:20]} fxe6 {[%emt 0:00:12]} 27. b3 {[%emt 0:00:48]} Rf8 {[%emt 0:00:05]} 28. Qxf8+ {[%emt 0:03:02]} Kxf8 {[%emt 0:00:07]} 29. Re2 {[%emt 0:00:04]} Qf5 {[%emt 0:00:35]} 30. Kg1 {[%emt 0:00:22]} Qb1+ {[%emt 0:00:18]} 31. Kf2 {[%emt 0:00:09]} Qd3 {[%emt 0:00:45]} 32. Kf1 {[%emt 0:01:07]} Qxd4 {[%emt 0:00:46]} 33. g3 {[%emt 0:00:33]} Ke7 {[%emt 0:02:06]} 34. Ke1 {[%emt 0:00:37]} Qg1+ {[%emt 0:03:30]} 35. Kd2 {[%emt 0:01:44]} Qb1 {[%emt 0:01:32]} 36. Ke3 {[%emt 0:00:37]} b5 {[%emt 0:00:42]} 37. Nc5 {[%emt 0:00:16]} Qc1+ {[%emt 0:00:18]} 38. Kd4 {[%emt 0:00:36]} 0-1

[Event "ONJK-C 2019"]
[Site "Borne"]
[Date "2019.08.09"]
[Round "7.11"]
[White "De Keukelaere, Wouter"]
[Black "Wierenga, Jael"]
[Result "0-1"]
[ECO "C01"]
[WhiteElo "1240"]
[BlackElo "1469"]
[Annotator "NA RC"]
[PlyCount "27"]
[EventDate "2019.08.05"]
[EventType "swiss"]
[EventCountry "NED"]
[SourceTitle "playchess.com"]
[Source "ChessBase"]
[SourceQuality "1"]
[TimeControl "5400+30"]

1. e4 {[%emt 0:00:00]} e6 {[%emt 0:00:00]} 2. d4 {[%emt 0:00:00]} d5 {[%emt 0:00:00]} 3. exd5 {[%emt 0:00:00]} exd5 {[%emt 0:00:00]} 4. Bd3 {[%emt 0:00:00]} Nf6 {[%emt 0:00:02]} 5. h3 {[%emt 0:00:26]} Be7 {[%emt 0:00:19]} 6. Qf3 {[%emt 0:02:57]} O-O {[%emt 0:06:57]} 7. Bf4 {[%emt 0:06:12]} b6 {[%emt 0:01:30]} 8. Ne2 {[%emt 0:02:35]} Bb7 {[%emt 0:01:47]} 9. O-O {[%emt 0:03:02]} c5 {[%emt 0:03:11]} 10. c3 {[%emt 0:00:54]} Ne4 {[%emt 0:04:49]} 11. Nd2 {[%emt 0:06:38]} f5 {[%emt 0:00:37]} 12. Ng3 {[%emt 0:06:47]} g5 {[%emt 0:05:14]} 13. Ndxe4 {[%emt 0:13:57]} fxe4 {[%emt 0:04:03]} 14. Qg4 {[%emt 0:00:06]} 0-1

[Event "ONJK-C 2019"]
[Site "Borne"]
[Date "2019.08.09"]
[Round "7.12"]
[White "Van Doren, Frodo"]
[Black "Yannopapas, Leontios"]
[Result "1/2-1/2"]
[ECO "B34"]
[WhiteElo "1433"]
[BlackElo "1428"]
[Annotator "NA RC"]
[PlyCount "83"]
[EventDate "2019.08.05"]
[EventType "swiss"]
[EventCountry "NED"]
[SourceTitle "playchess.com"]
[Source "ChessBase"]
[SourceQuality "1"]
[TimeControl "5400+30"]

1. e4 {[%emt 0:00:00]} c5 {[%emt 0:00:00]} 2. Nf3 {[%emt 0:00:00]} Nc6 {[%emt 0:00:00]} 3. d4 {[%emt 0:00:00]} cxd4 {[%emt 0:00:06]} 4. Nxd4 {[%emt 0:00:00]} g6 {[%emt 0:00:06]} 5. Nc3 {[%emt 0:01:10]} Bg7 {[%emt 0:00:08]} 6. Be3 {[%emt 0:00:15]} Nf6 {[%emt 0:00:34]} 7. f3 {[%emt 0:01:23]} O-O {[%emt 0:00:52]} 8. Qd2 {[%emt 0:03:19]} d5 {[%emt 0:03:17]} 9. exd5 {[%emt 0:05:28]} Nxd5 {[%emt 0:00:56]} 10. Nxc6 {[%emt 0:00:13]} bxc6 {[%emt 0:00:20]} 11. Bd4 {[%emt 0:00:52]} Rb8 {[%emt 0:06:51]} 12. Bxg7 {[%emt 0:01:39]} Kxg7 {[%emt 0:00:27]} 13. O-O-O {[%emt 0:00:38]} Be6 {[%emt 0:17:08]} 14. Bc4 {[%emt 0:02:50]} Qb6 {[%emt 0:03:32]} 15. Qd4+ {[%emt 0:05:38]} Qxd4 {[%emt 0:01:37]} 16. Rxd4 {[%emt 0:04:31]} Nxc3 {[%emt 0:00:46]} 17. bxc3 {[%emt 0:00:22]} c5 {[%emt 0:01:52]} 18. Re4 {[%emt 0:00:26]} Bxc4 {[%emt 0:00:20]} 19. Rxc4 {[%emt 0:00:05]} Rbc8 {[%emt 0:00:35]} 20. Rd1 {[%emt 0:00:29]} Rc7 {[%emt 0:00:30]} 21. Rd5 {[%emt 0:01:30]} Rfc8 {[%emt 0:00:16]} 22. g4 {[%emt 0:02:43]} Kf6 {[%emt 0:01:05]} 23. f4 {[%emt 0:02:39]} Ke6 {[%emt 0:00:38]} 24. Rd3 {[%emt 0:01:05]} f6 {[%emt 0:04:06]} 25. Re4+ {[%emt 0:08:17]} Kf7 {[%emt 0:00:13]} 26. Rh3 {[%emt 0:02:34]} Kg7 {[%emt 0:01:13]} 27. Rhe3 {[%emt 0:00:15]} Kf7 {[%emt 0:00:17]} 28. Re6 {[%emt 0:03:13]} Rd8 {[%emt 0:04:04]} 29. Ra6 {[%emt 0:01:57]} Rd6 {[%emt 0:02:43]} 30. Ra5 {[%emt 0:03:29]} Re6 {[%emt 0:02:31]} 31. Kd2 {[%emt 0:08:34]} Rxe3 {[%emt 0:00:55]} 32. Kxe3 {[%emt 0:00:05]} h5 {[%emt 0:08:40]} 33. gxh5 {[%emt 0:06:43]} gxh5 {[%emt 0:00:20]} 34. f5 {[%emt 0:00:05]} Kg7 {[%emt 0:01:51]} 35. a4 {[%emt 0:08:00]} Kf7 {[%emt 0:01:38]} 36. Kd3 {[%emt 0:04:25]} e6 {[%emt 0:03:23]} 37. fxe6+ {[%emt 0:01:03]} Kxe6 {[%emt 0:00:08]} 38. Ke4 {[%emt 0:05:31]} f5+ {[%emt 0:01:29]} 39. Kf4 {[%emt 0:00:20]} Kd5 {[%emt 0:04:27]} 40. Rb5 {[%emt 0:00:40]} Kc4 {[%emt 0:01:15]} 41. Rb3 Rf7 {[%emt 0:56:09]} 42. h3 {[%emt 0:01:36]} 1/2-1/2

[Event "ONJK-C 2019"]
[Site "Borne"]
[Date "2019.08.09"]
[Round "7.13"]
[White "De Putter, Sven"]
[Black "Voorbergen, Milan"]
[Result "1-0"]
[ECO "C56"]
[WhiteElo "1319"]
[BlackElo "1410"]
[Annotator "NA RC"]
[PlyCount "55"]
[EventDate "2019.08.05"]
[EventType "swiss"]
[EventCountry "NED"]
[SourceTitle "playchess.com"]
[Source "ChessBase"]
[SourceQuality "1"]
[TimeControl "5400+30"]

1. e4 {[%emt 0:00:00]} e5 {[%emt 0:00:00]} 2. Nf3 {[%emt 0:00:00]} Nc6 {[%emt 0:00:00]} 3. Bc4 {[%emt 0:00:00]} h6 {[%emt 0:00:01]} 4. O-O {[%emt 0:00:14]} Bc5 {[%emt 0:00:06]} 5. c3 {[%emt 0:01:13]} d6 {[%emt 0:00:59]} 6. h3 {[%emt 0:00:28]} Nf6 {[%emt 0:00:17]} 7. d4 {[%emt 0:02:14]} exd4 {[%emt 0:00:56]} 8. cxd4 {[%emt 0:00:23]} Bb6 {[%emt 0:00:38]} 9. Nc3 {[%emt 0:01:32]} O-O {[%emt 0:00:37]} 10. Bf4 {[%emt 0:01:35]} Ba5 {[%emt 0:03:14]} 11. Qc2 {[%emt 0:05:54]} Bxc3 {[%emt 0:02:07]} 12. bxc3 {[%emt 0:00:19]} d5 {[%emt 0:00:38]} 13. exd5 {[%emt 0:03:19]} Nxd5 {[%emt 0:00:09]} 14. Bxd5 {[%emt 0:00:24]} Qxd5 {[%emt 0:00:06]} 15. Kh2 {[%emt 0:04:17]} Qh5 {[%emt 0:04:39]} 16. Ne5 {[%emt 0:01:27]} Ne7 {[%emt 0:01:25]} 17. Rfe1 {[%emt 0:12:27]} Ng6 {[%emt 0:02:30]} 18. Nxg6 {[%emt 0:03:56]} fxg6 {[%emt 0:00:18]} 19. Qb3+ {[%emt 0:00:43]} Kh8 {[%emt 0:00:25]} 20. Bg3 {[%emt 0:04:34]} b6 {[%emt 0:01:42]} 21. Re7 {[%emt 0:03:51]} c5 {[%emt 0:05:38]} 22. d5 {[%emt 0:03:09]} Bg4 {[%emt 0:10:34]} 23. Rae1 {[%emt 0:01:48]} Bf5 {[%emt 0:01:07]} 24. d6 {[%emt 0:01:29]} Rad8 {[%emt 0:01:04]} 25. Rxg7 {[%emt 0:03:53]} Rde8 {[%emt 0:12:04]} 26. Rxe8 {[%emt 0:01:43]} Rxe8 {[%emt 0:01:00]} 27. Qf7 {[%emt 0:00:43]} Rd8 {[%emt 0:01:28]} 28. Rh7# {[%emt 0:00:22]} 1-0

[Event "ONJK-C 2019"]
[Site "Borne"]
[Date "2019.08.09"]
[Round "7.14"]
[White "Van der Tuin, Tristan"]
[Black "Zaalmink, Bram"]
[Result "1/2-1/2"]
[ECO "D02"]
[WhiteElo "1238"]
[BlackElo "1367"]
[Annotator "NA RC"]
[PlyCount "139"]
[EventDate "2019.08.05"]
[EventType "swiss"]
[EventCountry "NED"]
[SourceTitle "playchess.com"]
[Source "ChessBase"]
[SourceQuality "1"]
[TimeControl "5400+30"]

1. d4 {[%emt 0:00:00]} Nf6 {[%emt 0:00:00]} 2. Nf3 {[%emt 0:00:00]} e6 {[%emt 0:00:51]} 3. Bf4 {[%emt 0:00:02]} d5 {[%emt 0:02:00]} 4. e3 {[%emt 0:01:18]} Bd6 {[%emt 0:04:14]} 5. Bxd6 {[%emt 0:01:04]} Qxd6 {[%emt 0:00:34]} 6. a3 {[%emt 0:01:46]} O-O {[%emt 0:01:16]} 7. Bd3 {[%emt 0:01:52]} b6 {[%emt 0:02:57]} 8. O-O {[%emt 0:00:44]} Bb7 {[%emt 0:00:21]} 9. Nbd2 {[%emt 0:03:11]} Nbd7 {[%emt 0:01:13]} 10. c4 {[%emt 0:04:00]} c5 {[%emt 0:03:08]} 11. dxc5 {[%emt 0:01:11]} Nxc5 {[%emt 0:01:16]} 12. Qe2 {[%emt 0:00:25]} e5 {[%emt 0:03:26]} 13. Bf5 {[%emt 0:01:25]} e4 {[%emt 0:01:55]} 14. Nd4 {[%emt 0:02:19]} Nd3 {[%emt 0:01:42]} 15. Rab1 {[%emt 0:01:26]} dxc4 {[%emt 0:01:02]} 16. Nxc4 {[%emt 0:01:27]} Qd5 {[%emt 0:00:58]} 17. b3 {[%emt 0:00:36]} g6 {[%emt 0:02:07]} 18. Bh3 {[%emt 0:00:45]} Rad8 {[%emt 0:05:02]} 19. g3 {[%emt 0:04:43]} Qh5 {[%emt 0:01:58]} 20. Qxh5 {[%emt 0:00:36]} Nxh5 {[%emt 0:00:03]} 21. Bg2 {[%emt 0:01:58]} Nc5 {[%emt 0:02:17]} 22. b4 {[%emt 0:00:51]} Nd7 {[%emt 0:06:04]} 23. Nd6 {[%emt 0:01:37]} Ba8 {[%emt 0:00:50]} 24. Nxe4 {[%emt 0:00:26]} Ndf6 {[%emt 0:01:35]} 25. Nxf6+ {[%emt 0:00:14]} Nxf6 {[%emt 0:00:08]} 26. Bxa8 {[%emt 0:00:06]} Rxa8 {[%emt 0:00:11]} 27. Nc6 {[%emt 0:00:19]} Ne4 {[%emt 0:00:37]} 28. Rbc1 {[%emt 0:00:53]} Kg7 {[%emt 0:00:36]} 29. Rfd1 {[%emt 0:00:25]} Nf6 {[%emt 0:00:48]} 30. Kg2 {[%emt 0:00:18]} Rfc8 {[%emt 0:00:41]} 31. Kf3 {[%emt 0:01:38]} Rc7 {[%emt 0:00:45]} 32. h4 {[%emt 0:00:28]} Rac8 {[%emt 0:00:13]} 33. b5 {[%emt 0:00:26]} h5 {[%emt 0:00:54]} 34. e4 {[%emt 0:00:31]} Re8 {[%emt 0:00:33]} 35. e5 {[%emt 0:00:33]} Ng4 {[%emt 0:00:47]} 36. a4 {[%emt 0:01:58]} Rb7 {[%emt 0:03:04]} 37. Rd5 {[%emt 0:00:37]} f6 {[%emt 0:04:08]} 38. exf6+ {[%emt 0:00:24]} Nxf6 {[%emt 0:00:31]} 39. Rdd1 {[%emt 0:00:46]} Rf7 {[%emt 0:00:45]} 40. Kg2 {[%emt 0:00:20]} Ng4 {[%emt 0:00:22]} 41. Rc2 {[%emt 0:01:07]} Ref8 {[%emt 0:00:28]} 42. Rdd2 {[%emt 0:00:21]} Kh6 {[%emt 0:01:55]} 43. Nd4 {[%emt 0:01:33]} Re8 {[%emt 0:04:31]} 44. Rc3 {[%emt 0:01:36]} Re4 {[%emt 0:00:47]} 45. f3 {[%emt 0:00:17]} Ne3+ {[%emt 0:00:28]} 46. Kf2 {[%emt 0:01:02]} Ng4+ {[%emt 0:00:17]} 47. Kg1 {[%emt 0:01:29]} Re1+ {[%emt 0:01:26]} 48. Kg2 {[%emt 0:00:11]} Nf6 {[%emt 0:01:17]} 49. Ra2 {[%emt 0:01:35]} Rd7 {[%emt 0:02:18]} 50. Rd3 {[%emt 0:01:03]} Rd5 {[%emt 0:02:27]} 51. a5 {[%emt 0:02:59]} Rb1 {[%emt 0:00:54]} 52. axb6 {[%emt 0:01:46]} axb6 {[%emt 0:00:20]} 53. Rb3 {[%emt 0:00:05]} Rxb3 {[%emt 0:01:17]} 54. Nxb3 {[%emt 0:00:04]} Rxb5 {[%emt 0:00:08]} 55. Nd4 {[%emt 0:00:33]} Rb4 {[%emt 0:01:18]} 56. Nc6 {[%emt 0:01:16]} Rb1 {[%emt 0:00:20]} 57. Kf2 {[%emt 0:00:44]} b5 {[%emt 0:00:05]} 58. Re2 {[%emt 0:01:34]} Rc1 {[%emt 0:07:44]} 59. Ne5 {[%emt 0:01:10]} Rc7 {[%emt 0:00:38]} 60. g4 {[%emt 0:00:35]} Kg7 {[%emt 0:01:18]} 61. g5 {[%emt 0:01:10]} Nd7 {[%emt 0:01:07]} 62. Nxd7 {[%emt 0:00:19]} Rxd7 {[%emt 0:00:06]} 63. Rb2 {[%emt 0:00:06]} Rd5 {[%emt 0:00:16]} 64. Ke3 {[%emt 0:00:19]} Kf7 {[%emt 0:00:17]} 65. Rb4 {[%emt 0:00:26]} Ke6 {[%emt 0:00:47]} 66. f4 {[%emt 0:00:34]} Kf5 {[%emt 0:00:55]} 67. Ke2 {[%emt 0:08:30]} Kg4 {[%emt 0:00:53]} 68. Ke3 {[%emt 0:01:21]} Kf5 {[%emt 0:02:57]} 69. Rb1 {[%emt 0:01:08]} Ke6 {[%emt 0:00:52]} 70. Ke4 {[%emt 0:00:00] Ke5+ Ra1+} 1/2-1/2

[Event "ONJK-C 2019"]
[Site "Borne"]
[Date "2019.08.09"]
[Round "8.1"]
[White "Nielsen, Philip"]
[Black "De Rycke, Tyani"]
[Result "0-1"]
[ECO "D02"]
[WhiteElo "1797"]
[BlackElo "1787"]
[Annotator "NA"]
[PlyCount "36"]
[EventDate "2019.08.05"]
[EventType "swiss"]
[EventCountry "NED"]
[SourceTitle "playchess.com"]
[Source "ChessBase"]
[SourceQuality "1"]
[TimeControl "5400+30"]

1. d4 {[%emt 0:00:00]} d5 {[%emt 0:00:00]} 2. Bf4 {[%emt 0:00:00]} e6 {[%emt 0:00:00]} 3. e3 {[%emt 0:00:00]} Nf6 {[%emt 0:00:00]} 4. Nf3 {[%emt 0:00:23]} Be7 {[%emt 0:00:00]} 5. Bd3 {[%emt 0:01:17]} O-O {[%emt 0:00:08]} 6. h3 {[%emt 0:01:27]} b6 {[%emt 0:00:20]} 7. Nbd2 {[%emt 0:01:41]} Bb7 {[%emt 0:00:15]} 8. Qe2 {[%emt 0:01:59]} c5 {[%emt 0:00:20]} 9. c3 {[%emt 0:00:09]} Nc6 {[%emt 0:01:10]} 10. O-O {[%emt 0:02:19]} c4 {[%emt 0:00:39]} 11. Bc2 {[%emt 0:00:08]} b5 {[%emt 0:00:36]} 12. b3 {[%emt 0:00:32]} Bd6 {[%emt 0:03:59]} 13. Bxd6 {[%emt 0:00:41]} Qxd6 {[%emt 0:00:10]} 14. Rab1 {[%emt 0:01:49]} Rab8 {[%emt 0:00:54]} 15. Rb2 {[%emt 0:03:37]} a5 {[%emt 0:01:17]} 16. Rfb1 {[%emt 0:00:26]} Ba6 {[%emt 0:00:31]} 17. Qd1 {[%emt 0:02:25]} b4 {[%emt 0:00:38]} 18. cxb4 {[%emt 0:01:01]} c3 {[%emt 0:00:31]} 0-1

[Event "ONJK-C 2019"]
[Site "Borne"]
[Date "2019.08.09"]
[Round "8.2"]
[White "Dhaenens, Leon"]
[Black "Klugstedt, Vincent"]
[Result "0-1"]
[ECO "A36"]
[WhiteElo "1583"]
[BlackElo "1834"]
[Annotator "NA"]
[PlyCount "98"]
[EventDate "2019.08.05"]
[EventType "swiss"]
[EventCountry "NED"]
[SourceTitle "playchess.com"]
[Source "ChessBase"]
[SourceQuality "1"]
[TimeControl "5400+30"]

1. c4 {[%emt 0:00:00]} c5 {[%emt 0:00:00]} 2. g3 {[%emt 0:00:00]} Nc6 {[%emt 0:00:00]} 3. Bg2 {[%emt 0:00:00]} g6 {[%emt 0:00:05]} 4. Nc3 {[%emt 0:00:07]} Bg7 {[%emt 0:00:09]} 5. a3 {[%emt 0:00:20]} Nf6 {[%emt 0:00:42]} 6. e3 {[%emt 0:02:05]} O-O {[%emt 0:00:34]} 7. Rb1 {[%emt 0:02:15]} d6 {[%emt 0:02:02]} 8. Nge2 {[%emt 0:09:53]} Bf5 {[%emt 0:01:21]} 9. d3 {[%emt 0:00:22]} Ne5 {[%emt 0:00:39]} 10. e4 {[%emt 0:00:15]} Bg4 {[%emt 0:03:42]} 11. O-O {[%emt 0:01:19]} Qd7 {[%emt 0:01:31]} 12. f4 {[%emt 0:03:36]} Nc6 {[%emt 0:01:32]} 13. Qc2 {[%emt 0:06:12]} Rab8 {[%emt 0:02:12]} 14. b4 {[%emt 0:04:11]} b6 {[%emt 0:01:29]} 15. Be3 {[%emt 0:07:51]} Rfd8 {[%emt 0:02:43]} 16. Kh1 {[%emt 0:04:45]} Bh3 {[%emt 0:00:53]} 17. Qd2 {[%emt 0:04:04]} Bxg2+ {[%emt 0:01:23]} 18. Kxg2 {[%emt 0:00:31]} e6 {[%emt 0:04:27]} 19. f5 {[%emt 0:11:26]} Ng4 {[%emt 0:04:43]} 20. Bg5 {[%emt 0:04:09]} Rf8 {[%emt 0:01:48]} 21. f6 {[%emt 0:01:01]} Bh8 {[%emt 0:00:56]} 22. h3 {[%emt 0:02:02]} Nge5 {[%emt 0:00:22]} 23. b5 {[%emt 0:05:25]} Nd4 {[%emt 0:15:02]} 24. Rbd1 {[%emt 0:12:35]} Nxe2 {[%emt 0:00:00]} 25. Nxe2 {[%emt 0:00:45]} d5 {[%emt 0:00:00]} 26. Qf4 {[%emt 0:01:00]} Qd6 {[%emt 0:00:00]} 27. Qh4 {[%emt 0:02:18]} Nd7 {[%emt 0:00:00]} 28. Qh6 {[%emt 0:02:49]} e5 {[%emt 0:00:00]} 29. exd5 {[%emt 0:01:40]} Nxf6 {[%emt 0:00:00]} 30. Qh4 {[%emt 0:00:34]} Nxd5 {[%emt 0:00:00]} 31. cxd5 {[%emt 0:00:20]} Qxd5+ {[%emt 0:00:00]} 32. Qe4 {[%emt 0:00:10]} Qe6 {[%emt 0:01:32]} 33. Qc4 {[%emt 0:01:53]} Qd7 {[%emt 0:03:00]} 34. Nc3 {[%emt 0:00:49]} Rbe8 {[%emt 0:02:10]} 35. Ne4 {[%emt 0:01:03]} Re6 {[%emt 0:00:35]} 36. Bf6 {[%emt 0:00:46]} Qb7 {[%emt 0:01:25]} 37. Kh2 {[%emt 0:00:43]} h6 {[%emt 0:00:15]} 38. Bxh8 {[%emt 0:00:39]} Kxh8 {[%emt 0:00:15]} 39. Rf6 {[%emt 0:00:48]} Rxf6 {[%emt 0:00:55]} 40. Nxf6 {[%emt 0:00:07]} Qf3 {[%emt 0:00:11]} 41. Qc1 {[%emt 0:04:25]} Qxf6 {[%emt 0:00:49]} 42. Qxh6+ {[%emt 0:00:12]} Kg8 {[%emt 0:00:05]} 43. Qe3 {[%emt 0:00:12]} Rd8 {[%emt 0:02:14]} 44. Re1 {[%emt 0:01:56]} Rd4 {[%emt 0:01:18]} 45. Rc1 {[%emt 0:01:33]} Qf5 {[%emt 0:01:27]} 46. Rc3 {[%emt 0:00:37]} e4 {[%emt 0:01:09]} 47. dxe4 {[%emt 0:00:28]} Qxe4 {[%emt 0:00:41]} 48. Qf2 {[%emt 0:00:44]} Rd1 {[%emt 0:01:14]} 49. Rf3 {[%emt 0:00:49]} Re1 {[%emt 0:00:55]} 0-1

[Event "ONJK-C 2019"]
[Site "Borne"]
[Date "2019.08.09"]
[Round "8.3"]
[White "Kumar, Prajit Sai"]
[Black "Neisingh, Nils"]
[Result "0-1"]
[ECO "A75"]
[WhiteElo "1574"]
[BlackElo "1710"]
[Annotator "NA"]
[PlyCount "56"]
[EventDate "2019.08.05"]
[EventType "swiss"]
[EventCountry "NED"]
[SourceTitle "playchess.com"]
[Source "ChessBase"]
[SourceQuality "1"]
[TimeControl "5400+30"]

1. d4 {[%emt 0:00:00]} Nf6 {[%emt 0:00:00]} 2. c4 {[%emt 0:00:00]} c5 {[%emt 0:00:00]} 3. d5 {[%emt 0:00:00]} e6 {[%emt 0:00:36]} 4. Nc3 {[%emt 0:00:00]} exd5 {[%emt 0:00:03]} 5. cxd5 {[%emt 0:00:14]} d6 {[%emt 0:00:02]} 6. e4 {[%emt 0:00:14]} g6 {[%emt 0:00:14]} 7. Nf3 {[%emt 0:00:31]} Bg7 {[%emt 0:00:43]} 8. Be2 {[%emt 0:00:16]} O-O {[%emt 0:00:12]} 9. O-O {[%emt 0:00:17]} a6 {[%emt 0:00:20]} 10. a4 {[%emt 0:00:19]} Re8 {[%emt 0:01:06]} 11. Qc2 {[%emt 0:00:37]} Qc7 {[%emt 0:03:18]} 12. Bf4 {[%emt 0:01:21]} Bg4 {[%emt 0:30:52]} 13. h3 {[%emt 0:00:08]} Bxf3 {[%emt 0:00:06]} 14. Bxf3 {[%emt 0:00:10]} Nbd7 {[%emt 0:00:12]} 15. Rfe1 {[%emt 0:03:47]} Ne5 {[%emt 0:02:20]} 16. Bxe5 {[%emt 0:00:32]} Rxe5 {[%emt 0:00:05]} 17. Re3 {[%emt 0:01:44]} Rae8 {[%emt 0:00:44]} 18. Rae1 {[%emt 0:00:07]} Qa5 {[%emt 0:03:00]} 19. Be2 {[%emt 0:03:36]} Bh6 {[%emt 0:04:11]} 20. Rd3 {[%emt 0:02:10]} Nxe4 {[%emt 0:02:31]} 21. Kf1 {[%emt 0:02:19]} Nxc3 {[%emt 0:00:48]} 22. bxc3 {[%emt 0:00:17]} Re4 {[%emt 0:05:38]} 23. c4 {[%emt 0:01:11]} Qb4 {[%emt 0:01:57]} 24. Rdd1 {[%emt 0:01:27]} Bg7 {[%emt 0:05:40]} 25. f3 {[%emt 0:03:45]} R4e7 {[%emt 0:09:21]} 26. Rb1 {[%emt 0:01:13]} Qc3 {[%emt 0:05:23]} 27. Rec1 {[%emt 0:03:02]} Qe3 {[%emt 0:02:46]} 28. Bd3 {[%emt 0:01:34]} Bd4 {[%emt 0:01:05]} 0-1

[Event "ONJK-C 2019"]
[Site "Borne"]
[Date "2019.08.09"]
[Round "8.4"]
[White "De Vries, Fabian"]
[Black "Smeets, Kobe"]
[Result "1/2-1/2"]
[ECO "C02"]
[WhiteElo "1704"]
[BlackElo "1530"]
[Annotator "NA"]
[PlyCount "68"]
[EventDate "2019.08.05"]
[EventType "swiss"]
[EventCountry "NED"]
[SourceTitle "playchess.com"]
[Source "ChessBase"]
[SourceQuality "1"]
[TimeControl "5400+30"]

1. e4 {[%emt 0:00:00]} c5 {[%emt 0:00:00]} 2. c3 {[%emt 0:00:00]} e6 {[%emt 0:00:23]} 3. d4 {[%emt 0:00:03]} cxd4 {[%emt 0:00:09]} 4. cxd4 {[%emt 0:00:06]} d5 {[%emt 0:00:11]} 5. e5 {[%emt 0:01:07]} Nc6 {[%emt 0:00:15]} 6. Nf3 {[%emt 0:00:39]} Nge7 {[%emt 0:00:25]} 7. Bd3 {[%emt 0:00:43]} Bd7 {[%emt 0:00:28]} 8. O-O {[%emt 0:00:23]} Qb6 {[%emt 0:00:59]} 9. Bc2 {[%emt 0:01:22]} Ng6 {[%emt 0:02:45]} 10. a3 {[%emt 0:01:14]} Be7 {[%emt 0:00:26]} 11. b4 {[%emt 0:00:43]} O-O {[%emt 0:00:41]} 12. Qd3 {[%emt 0:06:07]} Rfc8 {[%emt 0:01:33]} 13. Bd2 {[%emt 0:13:21]} Nxb4 {[%emt 0:06:33]} 14. Bxb4 {[%emt 0:03:26]} Bxb4 {[%emt 0:00:19]} 15. axb4 {[%emt 0:00:37]} Bb5 {[%emt 0:00:09]} 16. Qd2 {[%emt 0:02:37]} Bxf1 {[%emt 0:00:20]} 17. Kxf1 {[%emt 0:00:10]} Rc4 {[%emt 0:01:16]} 18. b5 {[%emt 0:05:47]} Rac8 {[%emt 0:03:17]} 19. Bd3 {[%emt 0:18:18]} Rc1+ {[%emt 0:01:31]} 20. Ke2 {[%emt 0:00:49]} R1c7 {[%emt 0:45:53]} 21. h4 {[%emt 0:04:29]} f5 {[%emt 0:08:29]} 22. exf6 {[%emt 0:01:00]} gxf6 {[%emt 0:00:39]} 23. h5 {[%emt 0:04:04]} Nf8 {[%emt 0:00:59]} 24. g4 {[%emt 0:03:43]} Rg7 {[%emt 0:01:48]} 25. Qf4 {[%emt 0:02:26]} Nd7 {[%emt 0:04:23]} 26. Kf1 {[%emt 0:10:19]} e5 {[%emt 0:07:18]} 27. dxe5 {[%emt 0:02:56]} fxe5 {[%emt 0:00:21]} 28. Nxe5 {[%emt 0:00:46]} Qd6 {[%emt 0:01:13]} 29. h6 {[%emt 0:06:16]} Qxe5 {[%emt 0:00:27]} 30. Qxe5 {[%emt 0:02:53]} Nxe5 {[%emt 0:00:07]} 31. hxg7 {[%emt 0:00:26]} Nxd3 {[%emt 0:00:05]} 32. Ke2 {[%emt 0:01:51]} Nc1+ {[%emt 0:00:04]} 33. Ke3 {[%emt 0:00:13]} d4+ {[%emt 0:00:40]} 34. Ke4 {[%emt 0:01:16]} Re8+ {[%emt 0:00:28]} 1/2-1/2